lending/lending_fUSD_20240603
["ID","MTS","AMOUNT","RATE_DAILY","PERIOD"]
[328463634,1717419047939,-500.0,0.00032569,4]
[328463635,1717419047949,-500.0,0.00032569,4]
[328463636,1717419047958,-166.55,0.00032569,4]
[328463637,1717419047967,-1006.96,0.0003257,2]
[328463638,1717419047976,-1006.96,0.000326,2]
[328463639,1717419047985,-310.28,0.000326,2]
[328463640,1717419047994,-500.0,0.00032602,4]
[328463641,1717419048003,-500.0,0.00032602,4]
[328463642,1717419048012,-526.19,0.00032602,4]
[328463643,1717419048021,-500.0,0.00032602,4]
[328463644,1717419048030,-363.17,0.00032602,4]
[328463645,1717419048039,-521.82,0.00032602,4]
[328463646,1717419048048,-500.0,0.00032602,4]
[328463647,1717419048057,-500.0,0.00032602,4]
[328463648,1717419048067,-876.83,0.00032602,4]
[328463649,1717419048076,-500.0,0.00032602,4]
[328463650,1717419048085,-500.0,0.00032602,4]
[328463651,1717419048094,-1607.76,0.00032602,4]
[328463652,1717419048103,-500.0,0.00032602,4]
[328463653,1717419048112,-500.0,0.00032602,4]
[328463654,1717419048121,-533.84,0.00032602,4]
[328463655,1717419048131,-500.0,0.00032602,4]
[328463656,1717419048140,-500.0,0.00032602,4]
[328463657,1717419048149,-500.0,0.00032602,4]
[328463658,1717419048158,-1476.97,0.00032602,4]
[328463659,1717419048167,-500.0,0.00032602,4]
[328463660,1717419048176,-5976.21,0.00032602,4]
[328463661,1717419048185,-500.0,0.00032602,4]
[328463662,1717419048195,-500.0,0.00032602,4]
[328463663,1717419048205,-619.18,0.00032602,4]
[328463664,1717419048215,-500.0,0.00032602,4]
[328463665,1717419048223,-500.0,0.00032602,4]
[328463666,1717419048233,-500.0,0.00032602,4]
[328463667,1717419048242,-1248.82,0.00032602,4]
[328463668,1717419048252,-500.0,0.00032602,4]
[328463669,1717419048262,-433.78,0.0003262,2]
[328463670,1717419048271,-310.28,0.00032695,2]
[328463671,1717419048280,-236.99700543,0.00032739,2]
[328463672,1717419048290,-178.82276981,0.00032833,15]
[328463673,1717419048300,-4021.21603592,0.00032833,15]
[328463674,1717419048314,-500.0,0.00032842,4]
[328463675,1717419048324,-500.0,0.00032842,4]
[328463676,1717419048333,-500.0,0.00032842,4]
[328463677,1717419048342,-500.0,0.00032843,4]
[328463678,1717419048353,-500.0,0.00032843,4]
[328463679,1717419048362,-500.0,0.00032843,4]
[328463680,1717419048372,-550.40680921,0.00032843,4]
[328463681,1717419048381,-287.59108566,0.00032843,4]
[328463682,1717419048391,-549.75,0.00032843,4]
[328463683,1717419048401,-500.0,0.00032843,4]
[328463684,1717419048411,-503.17,0.00032843,4]
[328463685,1717419048420,-500.0,0.00032843,4]
[328463686,1717419048429,-500.0,0.00032843,4]
[328463687,1717419048438,-548.73,0.00032843,4]
[328463688,1717419048448,-664.42,0.00032843,4]
[328463689,1717419048459,-500.0,0.00032843,4]
[328463690,1717419048468,-500.0,0.00032843,4]
[328463691,1717419048477,-500.0,0.00032843,4]
[328463692,1717419048486,-247.12923275,0.00032843,4]
[328463693,1717419048496,-500.0,0.00032843,4]
[328463694,1717419048505,-692.0,0.00032856,2]
[328463695,1717419048514,-500.0,0.00032874,3]
[328463696,1717419048523,-500.0,0.00032876,4]
[328463697,1717419048533,-500.0,0.00032876,4]
[328463698,1717419048542,-526.19,0.00032876,4]
[328463699,1717419048551,-500.0,0.00032876,4]
[328463700,1717419048561,-521.82,0.00032876,4]
[328463701,1717419048570,-500.0,0.00032876,4]
[328463702,1717419048579,-173.93686129,0.00032876,4]
[328463703,1717419048588,-876.83,0.00032876,4]
[328463704,1717419048598,-500.0,0.00032876,4]
[328463705,1717419048607,-500.0,0.00032876,4]
[328463706,1717419048616,-1607.76,0.00032876,4]
[328463707,1717419048625,-500.0,0.00032876,4]
[328463708,1717419048634,-500.0,0.00032876,4]
[328463709,1717419048643,-533.84,0.00032876,4]
[328463710,1717419048652,-500.0,0.00032876,4]
[328463711,1717419048662,-500.0,0.00032876,4]
[328463712,1717419048671,-500.0,0.00032876,4]
[328463713,1717419048798,-1476.97,0.00032876,4]
[328463714,1717419048808,-500.0,0.00032876,4]
[328463715,1717419048818,-5976.21,0.00032876,4]
[328463716,1717419048827,-500.0,0.00032876,4]
[328463717,1717419048837,-500.0,0.00032876,4]
[328463718,1717419048846,-619.18,0.00032876,4]
[328463719,1717419048856,-500.0,0.00032876,4]
[328463720,1717419048865,-500.0,0.00032876,4]
[328463721,1717419048874,-500.0,0.00032876,4]
[328463722,1717419048884,-1248.82,0.00032876,4]
[328463723,1717419048893,-500.0,0.00032876,4]
[328463724,1717419048904,-1000.0,0.00032877,14]
[328463725,1717419048913,-500.0,0.00032883,3]
[328463726,1717419048922,-500.0,0.00032892,3]
[328463727,1717419048932,-178.83625136,0.000329,2]
[328463728,1717419048941,-1000.0,0.000329,7]
[328463729,1717419048951,-838.32304312,0.000329,2]
[328463730,1717419048960,-500.0,0.000329,3]
[328463731,1717419048969,-500.0,0.00032909,3]
[328463732,1717419048979,-7757.49255951,0.00032918,2]
[328463733,1717419048988,-500.0,0.00032918,3]
[328463734,1717419048997,-500.0,0.00032927,3]
[328463735,1717419049006,-500.0,0.00032936,3]
[328463737,1717419049015,-500.0,0.00032944,3]
[328463739,1717419049024,-500.0,0.00032953,3]
[328463740,1717419049033,-161.66416288,0.00032966,3]
[328463741,1717419049043,-697.36653125,0.0003297,2]
[328463742,1717419049053,-555219.64626415,0.0003298,14]
[328463743,1717419049062,-602.0,0.00033,22]
[328463744,1717419049071,-2541.51,0.00033,15]
[328463745,1717419049080,-2000.0,0.00033,20]
[328463746,1717419049088,-155.0,0.00033015,4]
[328463747,1717419049097,-383.03392112,0.00033016,2]
[328463748,1717419049106,-1000.0,0.00033028,30]
[328463749,1717419049115,-500.0,0.00033028,10]
[328463750,1717419049124,-200.0,0.00033028,10]
[328463751,1717419049134,-150.0,0.00033031,2]
[328463752,1717419049143,-500.0,0.00033032,10]
[328463753,1717419049152,-150.0,0.00033033,2]
[328463754,1717419049161,-150.0,0.00033033,2]
[328463755,1717419049171,-150.0,0.00033034,2]
[328463756,1717419049180,-150.0,0.00033036,2]
[328463757,1717419049189,-150.0,0.00033036,2]
[328463758,1717419049198,-150.0,0.00033036,2]
[328463759,1717419049208,-150.0,0.00033042,2]
[328463760,1717419049217,-150.0,0.00033043,2]
[328463761,1717419049226,-150.0,0.00033046,2]
[328463762,1717419049235,-150.0,0.00033049,2]
[328463763,1717419049243,-150.0,0.00033058,2]
[328463764,1717419049253,-150.0,0.00033061,2]
[328463765,1717419049262,-150.0,0.00033062,2]
[328463766,1717419049272,-150.0,0.00033062,2]
[328463767,1717419049281,-150.0,0.00033063,2]
[328463768,1717419049290,-150.0,0.00033068,2]
[328463769,1717419049299,-150.0,0.00033069,2]
[328463770,1717419049311,-150.0,0.00033072,2]
[328463771,1717419049320,-157.0,0.0003308,20]
[328463772,1717419049329,-150.0,0.00033083,2]
[328463773,1717419049338,-150.0,0.00033086,2]
[328463774,1717419049347,-1500.0,0.00033086,2]
[328463775,1717419049357,-150.0,0.00033088,2]
[328463776,1717419049366,-150.0,0.00033091,2]
[328463777,1717419049376,-150.0,0.00033092,2]
[328463778,1717419049386,-150.0,0.00033096,7]
[328463779,1717419049396,-150.0,0.00033096,7]
[328463780,1717419049405,-152.71370583,0.00033096,7]
[328463781,1717419049414,-150.0,0.00033097,2]
[328463782,1717419049423,-150.0,0.000331,2]
[328463783,1717419049432,-150.0,0.000331,2]
[328463784,1717419049442,-150.0,0.00033104,2]
[328463785,1717419049451,-209.01684711,0.00033108,2]
[328463786,1717419049459,-150.0,0.00033109,2]
[328463787,1717419049468,-150.0,0.00033111,2]
[328463788,1717419049477,-150.0,0.00033113,2]
[328463789,1717419049486,-150.0,0.00033114,2]
[328463790,1717419049495,-150.0,0.00033114,2]
[328463791,1717419049512,-150.0,0.00033114,2]
[328463792,1717419049523,-500.0,0.00033116,4]
[328463793,1717419049533,-160.70368835,0.00033116,4]
[328463794,1717419049543,-500.0,0.00033116,4]
[328463795,1717419049552,-500.0,0.00033117,4]
[328463796,1717419049562,-500.0,0.00033117,4]
[328463797,1717419049571,-500.0,0.00033117,4]
[328463798,1717419049581,-549.75,0.00033117,4]
[328463799,1717419049590,-500.0,0.00033117,4]
[328463800,1717419049599,-503.17,0.00033117,4]
[328463801,1717419049609,-500.0,0.00033117,4]
[328463802,1717419049618,-500.0,0.00033117,4]
[328463803,1717419049627,-548.73,0.00033117,4]
[328463804,1717419049636,-664.42,0.00033117,4]
[328463805,1717419049646,-500.0,0.00033117,4]
[328463806,1717419049655,-500.0,0.00033117,4]
[328463807,1717419049664,-500.0,0.00033117,4]
[328463808,1717419049674,-150.0,0.00033117,2]
[328463809,1717419049684,-500.0,0.00033117,4]
[328463810,1717419049693,-150.0,0.00033119,2]
[328463811,1717419049704,-150.0,0.0003312,2]
[328463812,1717419049713,-150.0,0.0003312,2]
[328463813,1717419049722,-150.0,0.00033127,2]
[328463814,1717419049731,-150.0,0.00033128,2]
[328463815,1717419049740,-150.0,0.00033129,2]
[328463816,1717419049750,-150.0,0.0003313,2]
[328463817,1717419049760,-150.0,0.00033135,2]
[328463818,1717419049769,-150.0,0.00033139,2]
[328463819,1717419049778,-150.0,0.00033141,2]
[328463820,1717419049788,-150.0,0.00033146,2]
[328463821,1717419049797,-150.0,0.00033147,2]
[328463822,1717419049806,-150.0,0.00033148,2]
[328463823,1717419049815,-162.64,0.0003315,4]
[328463824,1717419049825,-500.0,0.0003315,4]
[328463825,1717419049834,-526.19,0.0003315,4]
[328463826,1717419049843,-500.0,0.0003315,4]
[328463827,1717419049852,-521.82,0.0003315,4]
[328463828,1717419049862,-500.0,0.0003315,4]
[328463829,1717419049872,-876.83,0.0003315,4]
[328463830,1717419049882,-500.0,0.0003315,4]
[328463831,1717419049891,-500.0,0.0003315,4]
[328463832,1717419049900,-1607.76,0.0003315,4]
[328463833,1717419049910,-500.0,0.0003315,4]
[328463834,1717419049919,-500.0,0.0003315,4]
[328463835,1717419049929,-533.84,0.0003315,4]
[328463836,1717419049938,-500.0,0.0003315,4]
[328463837,1717419049948,-500.0,0.0003315,4]
[328463838,1717419049958,-500.0,0.0003315,4]
[328463839,1717419049968,-1476.97,0.0003315,4]
[328463840,1717419049977,-500.0,0.0003315,4]
[328463841,1717419049987,-5976.21,0.0003315,4]
[328463842,1717419049996,-500.0,0.0003315,4]
[328463843,1717419050006,-500.0,0.0003315,4]
[328463844,1717419050016,-619.18,0.0003315,4]
[328463845,1717419050026,-500.0,0.0003315,4]
[328463846,1717419050035,-500.0,0.0003315,4]
[328463847,1717419050045,-500.0,0.0003315,4]
[328463848,1717419050055,-1248.82,0.0003315,4]
[328463849,1717419050064,-500.0,0.0003315,4]
[328463850,1717419050073,-150.0,0.00033151,2]
[328463851,1717419050083,-150.0,0.00033157,2]
[328463852,1717419050093,-150.0,0.00033162,2]
[328463853,1717419050102,-150.0,0.00033163,2]
[328463854,1717419050112,-150.0,0.00033168,2]
[328463855,1717419050121,-150.0,0.00033175,2]
[328463856,1717419050132,-150.0,0.00033183,2]
[328463857,1717419050141,-150.0,0.00033188,2]
[328463858,1717419050151,-150.0,0.00033193,2]
[328463859,1717419050160,-150.0,0.00033193,2]
[328463860,1717419050170,-692.0,0.00033194,2]
[328463861,1717419050180,-150.0,0.00033196,2]
[328463862,1717419050189,-150.0,0.00033198,2]
[328463863,1717419050199,-14616.06966535,0.000332,5]
[328463864,1717419050210,-213.15222738,0.000332,5]
[328463865,1717419050221,-236.99700543,0.000332,2]
[328463866,1717419050230,-150.0,0.000332,7]
[328463867,1717419050240,-435.4620769,0.000332,2]
[328463868,1717419050250,-178.82276981,0.000332,15]
[328463869,1717419050259,-4021.21603592,0.000332,15]
[328463870,1717419050269,-154.75736264,0.00033201,7]
[328463871,1717419050279,-150.0,0.00033202,2]
[328463872,1717419050288,-150.0,0.00033203,2]
[328463873,1717419050298,-150.0,0.00033203,2]
[328463874,1717419050311,-150.0,0.00033206,2]
[328463875,1717419050320,-150.0,0.00033212,2]
[328463876,1717419050330,-150.0,0.00033212,2]
[328463877,1717419050339,-150.0,0.00033213,2]
[328463878,1717419050349,-150.0,0.00033214,2]
[328463879,1717419050358,-150.0,0.00033225,2]
[328463880,1717419050367,-150.0,0.00033233,2]
[328463881,1717419050376,-150.0,0.00033233,2]
[328463882,1717419050388,-150.0,0.00033234,2]
[328463883,1717419050398,-150.0,0.00033238,2]
[328463884,1717419050408,-150.0,0.00033238,2]
[328463885,1717419050417,-150.0,0.00033244,2]
[328463886,1717419050426,-150.0,0.00033251,2]
[328463887,1717419050434,-150.0,0.00033255,2]
[328463888,1717419050443,-150.0,0.00033257,2]
[328463889,1717419050454,-150.0,0.00033258,2]
[328463890,1717419050463,-150.0,0.0003326,2]
[328463891,1717419050472,-150.0,0.00033261,2]
[328463892,1717419050481,-150.0,0.00033262,2]
[328463893,1717419050490,-150.0,0.00033266,2]
[328463894,1717419050499,-150.0,0.00033269,2]
[328463895,1717419050508,-150.0,0.0003327,2]
[328463896,1717419050517,-150.0,0.00033271,2]
[328463897,1717419050526,-150.0,0.00033271,2]
[328463898,1717419050535,-150.0,0.00033273,2]
[328463899,1717419050545,-150.0,0.00033276,2]
[328463900,1717419050554,-150.0,0.00033277,2]
[328463901,1717419050563,-150.0,0.00033277,2]
[328463902,1717419050572,-3369.0190908,0.00033277,2]
[328463903,1717419050585,-2963.6986495,0.00033277,2]
[328463904,1717419050594,-2558.3782081,0.00033277,2]
[328463905,1717419050603,-2153.0577668,0.00033277,2]
[328463906,1717419050612,-1747.7373254,0.00033277,2]
[328463907,1717419050621,-150.0,0.00033279,2]
[328463908,1717419050631,-150.0,0.0003328,2]
[328463909,1717419050640,-150.0,0.00033281,2]
[328463910,1717419050649,-150.0,0.00033283,2]
[328463911,1717419050658,-150.0,0.00033283,2]
[328463912,1717419050668,-150.0,0.00033283,2]
[328463913,1717419050677,-150.0,0.00033285,2]
[328463914,1717419050687,-3774.3395322,0.00033291,2]
[328463915,1717419050695,-150.0,0.00033292,2]
[328463916,1717419050705,-150.0,0.00033294,2]
[328463917,1717419050714,-150.0,0.00033295,2]
[328463918,1717419050723,-150.0,0.00033296,2]
[328463919,1717419050733,-2181.29187519,0.00033298,10]
[328463920,1717419050742,-150.01,0.00033298,2]
[328463921,1717419050752,-3136.21345399,0.00033298,2]
[328463922,1717419050762,-251.23012888,0.00033298,4]
[328463923,1717419050770,-156.67158552,0.00033298,4]
[328463924,1717419050780,-155.51643274,0.00033298,4]
[328463925,1717419050789,-155.73138299,0.00033298,4]
[328463926,1717419050798,-189.21217193,0.00033298,4]
[328463927,1717419050807,-207.99433859,0.00033298,4]
[328463928,1717419050816,-155.28729487,0.00033298,4]
[328463929,1717419050826,-334.19792387,0.00033298,4]
[328463930,1717419050835,-4621.40456727,0.00033298,5]
[328463931,1717419050844,-2331.78270999,0.00033298,4]
[328463932,1717419050854,-5000.0,0.00033298,2]
[328463933,1717419050863,-163.01280048,0.00033298,4]
[328463934,1717419050873,-2004.73823716,0.00033298,4]
[328463935,1717419050882,-855.39109037,0.00033298,2]
[328463936,1717419050892,-3096.59597985,0.00033298,4]
[328463937,1717419050901,-532.73745398,0.00033298,4]
[328463938,1717419050911,-535.110452,0.00033298,4]
[328463939,1717419050920,-1275.83940264,0.00033298,4]
[328463940,1717419050929,-162.47833665,0.00033298,4]
[328463941,1717419050939,-1000.0,0.00033298,14]
[328463942,1717419050948,-150.0,0.00033299,2]
[328463943,1717419050959,-2475.81456,0.00033299,2]
[328463944,1717419050969,-2561.71921572,0.000333,5]
[328463945,1717419050979,-3255247.67605138,0.000333,5]
[328463946,1717419051206,-348.64,0.00030136,4]
[328463947,1717419051217,-151.36,0.00030136,4]
[328463948,1717419051227,-500.0,0.00030136,4]
[328463949,1717419051236,-500.0,0.0003041,4]
[328463950,1717419051245,-427.38620209,0.0003041,4]
[328463951,1717419051256,-72.61379791,0.0003041,4]
[328463952,1717419051266,-500.0,0.00030684,4]
[328463953,1717419051275,-288.73452789,0.00030958,4]
[328463954,1717419051291,-211.26547211,0.00030958,4]
[328463955,1717419051300,-500.0,0.00031232,4]
[328463956,1717419051314,-500.0,0.00031506,4]
[328463957,1717419051323,-150.0,0.00031845,2]
[328463958,1717419051332,-6.07393798,0.00031845,2]
[328463959,1717419051344,-143.92606202,0.00031845,2]
[328463960,1717419051354,-126.54160728,0.00032602,4]
[328463961,1717419051365,-373.45839272,0.00032602,4]
[328463962,1717419051375,-500.0,0.00032876,4]
[328463963,1717419051385,-500.0,0.0003315,4]
[328463964,1717419051394,-2332.68603475,0.000333,5]
[328463965,1717419051405,-14259.49141941,0.000333,5]
[328463966,1717419051420,-409.48,0.0003178,4]
[328463967,1717419051430,-219337.14382113,0.000333,5]
[328463968,1717419051584,-13792.12653569,0.000333,5]
[328463969,1717419051657,-500.0,0.00030136,4]
[328463970,1717419051666,-500.0,0.00030136,4]
[328463971,1717419051675,-500.0,0.0003041,4]
[328463972,1717419051685,-5828.60980162,0.000333,5]
[328463973,1717419051696,-613.53,0.000333,5]
[328463974,1717419051840,-500.0,0.00030136,4]
[328463975,1717419051849,-500.0,0.00030136,4]
[328463976,1717419051858,-500.0,0.00030136,4]
[328463977,1717419051868,-242.475,0.00030136,4]
[328463978,1717419051880,-257.525,0.00030136,4]
[328463979,1717419051889,-500.0,0.0003041,4]
[328463980,1717419051899,-500.0,0.0003041,4]
[328463981,1717419051907,-500.0,0.00030684,4]
[328463982,1717419051917,-558.8,0.00030684,4]
[328463983,1717419051926,-150.522,0.00031845,2]
[328463984,1717419051935,-1029.9326,0.00033268,4]
[328463985,1717419051952,-340.73609831,0.00030684,4]
[328463986,1717419051964,-267.66390169,0.00030684,4]
[328463987,1717419051973,-927.13671864,0.00033268,4]
[328463988,1717419051985,-2677.75431117,0.00033268,4]
[328463989,1717419051994,-328.38546986,0.00033298,4]
[328463990,1717419052003,-64872.67006613,0.000333,5]
[328463991,1717419053439,2005.42062269,0.00017259,2]
[328463992,1717419055764,4657.40230857,0.000201,2]
[328463993,1717419061421,5485.83699864,0.000201,2]
[328463994,1717419069679,700.0,0.000201,2]
[328463995,1717419097724,6924.82176386,0.000201,2]
[328463996,1717419097748,24299.03831679,0.000201,2]
[328463997,1717419118982,155.0,0.00017259,2]
[328463998,1717419124055,1066.49445789,0.00017259,2]
[328463999,1717419125217,1460.7239238,0.00017259,2]
[328464000,1717419243416,2914.337665,0.00017259,2]
[328464001,1717419420391,15880.86282308,0.00017259,2]
[328464002,1717419425450,207.96127058,0.00017259,2]
[328464003,1717419430664,542.2859949,0.00017259,2]
[328464004,1717419432555,4286.86690961,0.00017259,2]
[328464005,1717419433610,645.02383649,0.00017259,2]
[328464006,1717419597448,163.07491511,0.00019451,2]
[328464007,1717419819204,202.9,0.0002,30]
[328464008,1717420149931,2042.10470871,0.0002,2]
[328464010,1717420231851,-157.75,0.00024384,2]
[328464011,1717420231860,-363.40045734,0.00025,2]
[328464012,1717420231976,-886.59954266,0.00025,2]
[328464013,1717420231985,-488.23,0.00027197,2]
[328464014,1717420231995,-250.0,0.0002907,2]
[328464015,1717420232004,-1371.38,0.0002925,2]
[328464016,1717420232014,-4032.68977288,0.000293,2]
[328464069,1717420238014,-186.17,0.0002925,2]
[328464070,1717420238024,-2320.8846648,0.000293,2]
[328464071,1717420238036,-2003.26838978,0.000293,2]
[328464072,1717420238048,-2026.69066904,0.000293,2]
[328464073,1717420238060,-32.3470035,0.000293,2]
[328464074,1717420238071,-1124.62,0.00029316,2]
[328464075,1717420238080,-156.95,0.00029356,2]
[328464076,1717420238089,-11591.94,0.000294,2]
[328464077,1717420238099,-1022.6429965,0.00029425,2]
[328464078,1717420238116,-3912.70000001,0.00029425,2]
[328464079,1717420238214,-560.56292369,0.00029425,2]
[328464080,1717420238226,-2356.44659603,0.00029425,2]
[328464081,1717420238237,-488.23,0.00029461,2]
[328464082,1717420238247,-2331.91,0.00029494,2]
[328464083,1717420238256,-644.3929312,0.00029622,4]
[328464084,1717420238266,-154.70622788,0.00029643,2]
[328464085,1717420238276,-157.67588858,0.00029652,2]
[328464087,1717420238285,-178.9597924,0.00029997,2]
[328464089,1717420238295,-570.33060225,0.0003,4]
[328464092,1717420238305,-14030.63616465,0.0003,4]
[328464094,1717420238317,-239.1585,0.00030036,2]
[328464096,1717420238327,-679.4788,0.00030126,2]
[328464098,1717420238337,-500.0,0.00030136,4]
[328464100,1717420238347,-508.41257253,0.00030136,4]
[328464102,1717420238357,-522.08394597,0.00030136,4]
[328464104,1717420238366,-524.11174923,0.00030136,4]
[328464106,1717420238375,-520.12,0.00030136,4]
[328464109,1717420238385,-500.0,0.00030136,4]
[328464111,1717420238396,-387.02,0.00030136,4]
[328464113,1717420238406,-500.0,0.00030136,4]
[328464115,1717420238416,-511.4905611,0.00030136,4]
[328464117,1717420238426,-321.73,0.00030136,4]
[328464120,1717420238435,-500.0,0.00030136,4]
[328464122,1717420238445,-500.0,0.00030136,4]
[328464124,1717420238455,-216.9810632,0.00030136,4]
[328464126,1717420238464,-529.34228184,0.00030136,4]
[328464129,1717420238477,-500.0,0.00030136,4]
[328464131,1717420238486,-500.0,0.00030136,4]
[328464133,1717420238496,-500.0,0.00030136,4]
[328464135,1717420238506,-500.0,0.00030136,4]
[328464137,1717420238515,-500.0,0.00030136,4]
[328464139,1717420238526,-500.0,0.00030136,4]
[328464142,1717420238542,-500.0,0.00030136,4]
[328464144,1717420238552,-433.7100559,0.00030136,4]
[328464146,1717420238563,-500.0,0.00030136,4]
[328464148,1717420238573,-500.0,0.00030136,4]
[328464150,1717420238583,-500.0,0.00030136,4]
[328464152,1717420238593,-426.45,0.00030136,4]
[328464154,1717420238603,-310.4,0.00030136,4]
[328464156,1717420238613,-500.0,0.00030136,4]
[328464158,1717420238623,-500.0,0.00030136,4]
[328464160,1717420238632,-500.0,0.00030136,4]
[328464161,1717420238643,-500.0,0.00030136,4]
[328464163,1717420238652,-167.29,0.00030338,2]
[328464166,1717420238665,-635.59658785,0.0003041,4]
[328464168,1717420238675,-479.61,0.0003041,4]
[328464170,1717420238689,-500.0,0.0003041,4]
[328464172,1717420238699,-500.0,0.0003041,4]
[328464174,1717420238709,-500.0,0.0003041,4]
[328464176,1717420238719,-500.0,0.0003041,4]
[328464178,1717420238729,-320.37410019,0.0003041,4]
[328464180,1717420238739,-500.0,0.0003041,4]
[328464182,1717420238748,-500.0,0.0003041,4]
[328464184,1717420238761,-542.65,0.0003041,4]
[328464186,1717420238772,-500.0,0.0003041,4]
[328464188,1717420238782,-500.0,0.0003041,4]
[328464190,1717420238792,-634.72825885,0.0003041,4]
[328464192,1717420238801,-500.0,0.0003041,4]
[328464194,1717420238811,-500.0,0.0003041,4]
[328464196,1717420238820,-226.31810267,0.00030583,15]
[328464198,1717420238830,-1217.50451234,0.00030583,15]
[328464200,1717420238839,-6947.0,0.00030583,7]
[328464202,1717420238849,-2500.0,0.00030583,2]
[328464204,1717420238860,-2173.7898,0.00030583,2]
[328464206,1717420238870,-7500.0,0.00030584,2]
[328464208,1717420238879,-500.0,0.00030683,4]
[328464210,1717420238888,-500.0,0.00030683,4]
[328464212,1717420238898,-500.0,0.00030683,4]
[328464214,1717420238908,-638.19174706,0.00030683,4]
[328464216,1717420238917,-500.0,0.00030683,4]
[328464218,1717420238927,-500.0,0.00030683,4]
[328464220,1717420238937,-511.09607297,0.00030683,4]
[328464222,1717420238946,-500.0,0.00030683,4]
[328464224,1717420238956,-500.0,0.00030683,4]
[328464226,1717420238966,-500.0,0.00030683,4]
[328464228,1717420238975,-500.0,0.00030683,4]
[328464230,1717420238985,-500.0,0.00030683,4]
[328464232,1717420238994,-509.88930687,0.00030683,4]
[328464234,1717420239004,-604.99526723,0.00030683,4]
[328464236,1717420239014,-500.0,0.00030683,4]
[328464238,1717420239024,-500.0,0.00030683,4]
[328464240,1717420239034,-500.0,0.00030683,4]
[328464242,1717420239044,-500.0,0.00030683,4]
[328464244,1717420239055,-500.0,0.00030683,4]
[328464246,1717420239065,-500.0,0.00030683,4]
[328464248,1717420239074,-500.0,0.00030683,4]
[328464250,1717420239084,-625.69897738,0.00030683,4]
[328464252,1717420239094,-500.0,0.00030683,4]
[328464254,1717420239104,-500.0,0.00030683,4]
[328464256,1717420239115,-500.0,0.00030683,4]
[328464257,1717420239125,-500.0,0.00030683,4]
[328464258,1717420239136,-500.0,0.00030683,4]
[328464259,1717420239146,-501.46759596,0.00030683,4]
[328464260,1717420239156,-500.0,0.00030683,4]
[328464261,1717420239171,-5000.0,0.00030683,4]
[328464262,1717420239181,-500.0,0.00030683,4]
[328464263,1717420239191,-500.0,0.00030683,4]
[328464264,1717420239200,-500.0,0.00030683,4]
[328464265,1717420239211,-566.55522002,0.00030683,4]
[328464266,1717420239221,-500.0,0.00030683,4]
[328464267,1717420239231,-500.0,0.00030683,4]
[328464268,1717420239241,-500.0,0.00030683,4]
[328464269,1717420239250,-500.0,0.00030683,4]
[328464270,1717420239260,-593.47,0.00030683,4]
[328464271,1717420239269,-500.0,0.00030683,4]
[328464272,1717420239279,-500.0,0.00030683,4]
[328464273,1717420239289,-500.0,0.00030683,4]
[328464274,1717420239298,-500.0,0.00030683,4]
[328464275,1717420239308,-500.0,0.00030683,4]
[328464276,1717420239317,-511.56554265,0.00030683,4]